bitfinex/quotes_SOLUSD_20240607
["timestamp","ask_amount","ask_price","bid_price","bid_amount"]
[1717718791449,6.68,170.17,170.16,2.1744]
[1717718792134,14.58937097,170.19,170.16,2.1744]
[1717718792337,6.68,170.17,170.16,2.1744]
[1717718792851,6.68,170.18,170.16,2.1744]
[1717718795325,2.1741,170.19,170.16,2.1744]
[1717718795546,2.1739,170.2,170.17,2.1742]
[1717718795735,15.2157,170.22,170.17,2.1742]
[1717718795736,2.1738,170.21,170.17,2.1742]
[1717718795934,8.8536,170.23,170.19,2.1739]
[1717718796236,2.1737,170.22,170.19,2.1739]
[1717718796939,8.8537,170.22,170.19,2.1739]
[1717718797352,2.1737,170.22,170.19,2.1739]
[1717718797532,8.8537,170.22,170.19,2.1739]
[1717718798246,14.8221058,170.26,170.18,8.6966]
[1717718798247,10.4758058,170.26,170.18,8.6966]
[1717718798431,6.68,170.24,170.19,10.8701]
[1717718798840,6.68,170.24,170.21,2.1736]
[1717718799444,8.8534,170.24,170.21,2.1736]
[1717718803229,8.8534,170.24,170.2,2.1738]
[1717718804042,2.1735,170.23,170.2,2.1738]
[1717718804553,8.8534,170.24,170.2,2.1738]
[1717718805443,2.1734,170.24,170.2,2.1738]
[1717718805835,8.8534,170.24,170.2,2.1738]
[1717718806434,8.8534,170.24,170.21,2.1737]
[1717718807063,2.1735,170.23,170.2,2.1738]
[1717718807654,8.8534,170.24,170.2,2.1738]
[1717718808054,2.1735,170.23,170.2,2.1738]
[1717718808440,2.1736,170.22,170.19,2.1739]
[1717718808640,8.8535,170.23,170.17,17.5513]
[1717718809038,8.8535,170.23,170.19,2.1739]
[1717718809659,8.8535,170.23,170.2,2.1739]
[1717718810378,8.8535,170.23,170.19,2.1739]
[1717718810669,8.8535,170.23,170.2,2.1738]
[1717718811968,8.8535,170.23,170.2,2.1739]
[1717718812348,4.3466,170.25,170.2,2.1739]
[1717718812349,2.1734,170.24,170.2,2.1739]
[1717718812548,6.68,170.23,170.2,2.1739]
[1717718812764,8.8535,170.23,170.2,2.1739]
[1717718813275,10.7691,170.23,170.13,35.27]
[1717718813568,8.8539,170.2,170.17,2.1741]
[1717718813947,6.68,170.2,170.17,2.1741]
[1717718814358,8.854,170.19,170.13,15.2234]
[1717718814550,6.68,170.18,170.15,2.1745]
[1717718816044,6.68,170.18,170.14,2.1746]
[1717718816370,8.8541,170.18,170.14,2.1746]
[1717718816666,6.68,170.17,170.14,2.1746]
[1717718817775,6.68,170.16,170.14,2.1746]
[1717718819175,6.68,170.16,170.15,2.1745]
[1717718819751,6.68,170.16,170.11,13.0499]
[1717718819957,2.1743,170.17,170.14,2.1746]
[1717718819958,6.68,170.15,170.14,2.1746]
[1717718820175,6.68,170.15,170.11,15.2251]
[1717718820352,6.68,170.14,170.13,2.1747]
[1717718821369,13.2927,170.14,170.12,2.1749]
[1717718821546,13.2927,170.14,170.11,2.1749]
[1717718822452,6.6127,170.14,170.11,2.1749]
[1717718822772,6.68,170.13,170.11,2.1749]
[1717718823271,6.68,170.13,170.12,2.1749]
[1717718824356,13.2927,170.14,170.12,2.1749]
[1717718824660,13.2927,170.14,170.11,2.1749]
[1717718826673,6.68,170.13,170.11,2.1749]
[1717718827378,6.6127,170.14,170.12,2.1749]
[1717718827682,6.68,170.15,170.12,2.1749]
[1717718830357,8.7976,170.16,170.12,2.1749]
[1717718830558,6.68,170.14,170.12,2.1749]
[1717718831672,6.6232,170.16,170.13,2.1748]
[1717718831876,6.68,170.15,170.13,2.1748]
[1717718832883,8.7976,170.16,170.13,2.1748]
[1717718833065,6.68,170.15,170.13,2.1748]
[1717718833261,8.7976,170.16,170.13,2.1748]
[1717718833455,2.1743,170.17,170.13,2.1748]
[1717718833656,8.8543,170.17,170.13,2.1747]
[1717718833857,6.68,170.17,170.14,2.1746]
[1717718834473,8.8543,170.17,170.14,2.1746]
[1717718835581,8.8543,170.17,170.13,2.1747]
[1717718836881,2.1743,170.17,170.13,2.1747]
[1717718837183,2.1742,170.18,170.12,10.8745]
[1717718837478,6.68,170.17,170.14,2.1746]
[1717718838184,8.8543,170.17,170.14,2.1746]
[1717718838479,8.8543,170.17,170.13,2.1747]
[1717718839177,2.1744,170.16,170.13,2.1747]
[1717718839375,8.8544,170.16,170.13,2.1747]
[1717718839579,6.68,170.16,170.13,2.1747]
[1717718839951,8.8544,170.16,170.13,2.1747]
[1717718840168,6.68,170.16,170.13,2.1747]
[1717718840370,8.8544,170.16,170.13,2.1747]
[1717718840583,6.68,170.15,170.13,2.1747]
[1717718841081,6.68,170.15,170.12,2.1748]
[1717718841283,6.68,170.14,170.12,2.1748]
[1717718841660,6.68,170.13,170.11,2.1749]
[1717718842568,6.68,170.13,170.1,2.1751]
[1717718842981,6.68,170.12,170.1,2.1751]
[1717718843781,6.68,170.12,170.06,35.25]
[1717718843957,8.7581,170.12,170.06,10.8782]
[1717718844165,6.68,170.1,170.07,2.1754]
[1717718844364,6.68,170.1,170.04,4.3517]
[1717718844365,6.68,170.09,170.06,2.1756]
[1717718844675,8.8553,170.09,170.06,2.1756]
[1717718844876,6.68,170.07,170.04,2.1759]
[1717718845080,6.68,170.07,170.01,7.3243432]
[1717718845288,6.68,170.07,170.04,2.1759]
[1717718845666,6.68,170.07,170.02,4.3524]
[1717718845893,6.68,170.07,170.04,2.1758]
[1717718846595,8.8555,170.07,170.03,2.176]
[1717718847465,6.68,170.07,170.04,2.1759]
[1717718847672,2.1754,170.08,170.04,2.1759]
[1717718847886,6.68,170.06,170.04,2.1759]
[1717718849188,6.68,170.06,170.0,13.198917]
[1717718849498,6.68,170.04,170.02,2.1761]
[1717718849676,6.68,170.05,170.02,2.1761]
[1717718850093,6.68,170.05,170.03,2.176]
[1717718850802,6.68,170.05,170.02,2.1761]
[1717718850993,6.68,170.03,170.01,2.1763]
[1717718851172,6.68,170.03,170.0,15.375217]
[1717718851488,6.68,170.02,170.0,15.375217]
[1717718853402,6.3611,170.04,170.01,2.1763]
[1717718853699,6.68,170.04,170.02,2.1761]
[1717718854003,2.1757,170.06,170.02,2.1761]
[1717718854178,6.68,170.05,170.02,2.1761]
[1717718854373,6.68,170.04,170.0,13.198917]
[1717718854596,6.68,170.04,170.01,2.1762]
[1717718854792,6.68,170.03,170.01,2.1762]
[1717718855198,6.68,170.03,170.0,13.198917]
[1717718855504,12.49407758,170.09,170.0,13.198917]
[1717718855505,2.1759,170.04,170.0,15.375217]
[1717718855799,4.3516,170.06,170.02,2.1761]
[1717718855800,6.68,170.05,170.02,2.1761]
[1717718855982,6.68,170.05,170.0,13.198917]
[1717718855983,6.68,170.04,170.0,17.551717]
[1717718856179,6.68,170.03,170.02,2.1761]
[1717718856375,6.68,170.03,170.01,2.1762]
[1717718856982,2.1758,170.05,170.01,2.1762]
[1717718857183,2.1756,170.07,170.03,2.176]
[1717718857390,15.3476,170.08,170.03,2.176]
[1717718857391,6.68,170.05,170.03,2.176]
[1717718860203,6.68,170.05,170.02,2.1761]
[1717718860512,2.1757,170.06,170.03,2.176]
[1717718860692,2.1756,170.07,170.03,2.176]
[1717718860889,6.68,170.05,170.03,2.176]
[1717718861801,19.0508,170.14,170.05,10.8789]
[1717718862009,6.68,170.11,170.08,2.1753]
[1717718862391,6.68,170.11,170.09,2.1753]
[1717718862594,2.1748,170.13,170.07,4.351]
[1717718862807,2.1748,170.13,170.1,2.1751]
[1717718863002,8.8548,170.13,170.1,2.1751]
[1717718864820,8.8548,170.13,170.09,2.1752]
[1717718865387,2.1748,170.13,170.09,2.1752]
[1717718865608,2.1748,170.13,170.1,2.1751]
[1717718865808,8.8548,170.13,170.1,2.1751]
[1717718866115,8.8548,170.13,170.09,2.1752]
[1717718866411,8.8548,170.13,170.1,2.1751]
[1717718866713,8.8548,170.13,170.09,2.1752]
[1717718867509,2.1749,170.12,170.09,2.1752]
[1717718868717,2.1748,170.13,170.09,2.1752]
[1717718868896,6.68,170.12,170.09,2.1752]
[1717718869618,8.8548,170.13,170.09,2.1752]
[1717718870920,6.68,170.12,170.09,2.1752]
[1717718871110,8.8549,170.12,170.09,2.1752]
[1717718872395,6.68,170.12,170.07,39.601]
[1717718872710,6.68,170.14,170.11,2.1749]
[1717718872888,6.68,170.14,170.12,2.1749]
[1717718873091,6.68,170.14,170.09,10.8763]
[1717718873092,6.68,170.14,170.11,2.1749]
[1717718876110,8.8546,170.15,170.12,2.1749]
[1717718879809,6.68,170.13,170.12,2.1749]
[1717718880039,6.4367,170.14,170.11,2.1749]
[1717718880242,8.6113,170.14,170.11,2.1749]
[1717718880408,2.1746,170.15,170.11,2.1749]
[1717718880717,8.6113,170.15,170.11,2.1749]
[1717718880903,6.68,170.14,170.12,2.1749]
[1717718881218,15.4627,170.14,170.11,2.1749]
[1717718881932,6.68,170.13,170.11,2.1749]
[1717718882118,6.68,170.12,170.1,2.1751]
[1717718882429,6.68,170.11,170.1,2.1751]
[1717718883122,6.68,170.12,170.11,2.175]
[1717718883532,6.68,170.12,170.1,2.1751]
[1717718883916,6.68,170.12,170.11,2.175]
[1717718884837,6.68,170.13,170.11,2.175]
[1717718885436,2.1746,170.15,170.12,2.1749]
[1717718885734,2.1746,170.15,170.11,2.1749]
[1717718885735,6.68,170.14,170.11,2.1749]
[1717718886516,6.68,170.13,170.11,2.1749]
[1717718887239,2.1746,170.14,170.11,2.1749]
[1717718887240,6.68,170.12,170.11,2.1749]
[1717718888717,8.6174,170.14,170.11,2.1749]
[1717718888917,6.68,170.12,170.11,2.1749]
[1717718892839,6.68,170.12,170.06,8.7026]
[1717718893017,6.68,170.1,170.08,2.1753]
[1717718893212,6.4428,170.11,170.09,2.1753]
[1717718893417,6.68,170.1,170.09,2.1753]
[1717718893936,12.8943,170.1,170.08,2.1754]
[1717718894122,6.68,170.09,170.08,2.1754]
[1717718894550,6.2143,170.1,170.08,2.1754]
[1717718894717,6.68,170.09,170.08,2.1754]
[1717718896537,6.68,170.09,170.07,2.1754]
[1717718897826,6.68,170.08,170.07,2.1754]
[1717718898027,6.68,170.08,170.06,2.1756]
[1717718898740,6.68,170.08,170.07,2.1755]
[1717718905860,6.68,170.08,170.06,2.1756]
[1717718906164,2.1753,170.09,170.06,2.1756]
[1717718906461,6.68,170.08,170.06,2.1756]
[1717718913932,6.68,170.08,170.05,2.1758]
[1717718914133,6.6003,170.08,170.05,2.1758]
[1717718914352,6.68,170.06,170.05,2.1758]
[1717718916051,8.588,170.1,170.06,2.1756]
[1717718916245,6.68,170.07,170.06,2.1756]
[1717718917657,6.68,170.09,170.06,2.1756]
[1717718918051,6.68,170.09,170.07,2.1755]
[1717718918535,6.68,170.09,170.06,2.1756]
[1717718919261,8.588,170.1,170.06,2.1756]
[1717718919460,6.68,170.08,170.06,2.1756]
[1717718920971,6.68,170.08,170.07,2.1755]
[1717718921596,6.68,170.08,170.06,2.1756]
[1717718922687,8.588,170.1,170.06,2.1756]
[1717718922852,6.68,170.08,170.06,2.1756]
[1717718923282,6.68,170.08,170.05,2.1757]
[1717718924078,6.68,170.07,170.05,2.1757]
[1717718924960,6.68,170.06,170.03,2.1759]
[1717718925286,6.68,170.04,170.03,2.1759]
[1717718929877,6.68,170.05,170.03,2.1759]
[1717718930778,8.7771,170.07,170.03,2.1759]
[1717718930995,6.68,170.07,170.03,4.3521]
[1717718931163,2.1751,170.11,170.04,15.2315]
[1717718931481,16.9894,170.13,170.08,2.1754]
[1717718931482,2.1749,170.12,170.08,2.1754]
[1717718931685,6.68,170.09,170.07,2.1755]
[1717718932265,6.68,170.09,170.06,2.1756]
[1717718933272,2.1752,170.1,170.06,2.1756]
[1717718933480,6.68,170.09,170.06,2.1756]
[1717718935281,6.68,170.09,170.05,2.1757]
[1717718935282,2.1753,170.09,170.05,2.1757]
[1717718935475,6.68,170.07,170.05,2.1757]
[1717718937490,6.68,170.06,170.04,2.1758]
[1717718937692,6.68,170.05,170.04,2.1758]
[1717718938784,8.5826,170.08,170.04,2.1758]
[1717718940093,8.5826,170.08,170.05,2.1758]
[1717718940295,6.4072,170.08,170.05,2.1758]
[1717718940487,6.68,170.06,170.05,2.1758]
[1717718941392,6.68,170.11,170.08,2.1753]
[1717718941908,2.175,170.11,170.07,2.1755]
[1717718942075,6.68,170.1,170.07,2.1755]
[1717718942271,8.2848,170.11,170.07,2.1755]
[1717718942772,6.68,170.08,170.07,2.1755]
[1717718943397,8.2848,170.11,170.07,2.1755]
[1717718943613,23.0887,170.15,170.07,8.702]
[1717718943906,8.6128,170.13,170.09,2.1752]
[1717718944082,6.68,170.11,170.09,2.1752]
[1717718944398,8.6128,170.13,170.09,2.1752]
[1717718944602,6.68,170.1,170.09,2.1752]
[1717718944781,6.68,170.1,170.08,2.1753]
[1717718945592,6.438,170.13,170.09,2.1753]
[1717718945800,6.68,170.1,170.08,2.1753]
[1717718946105,8.6128,170.13,170.09,2.1753]
[1717718946398,6.68,170.1,170.08,2.1753]
[1717718949378,6.68,170.11,170.08,2.1753]
[1717718949575,6.68,170.11,170.09,2.1753]
[1717718951398,2.1749,170.12,170.08,2.1754]
[1717718951588,6.68,170.11,170.08,2.1754]
[1717718952300,12.9206,170.16,170.08,2.1754]
[1717718952301,2.1746,170.14,170.1,2.1751]
[1717718952510,8.8546,170.14,170.1,2.1751]
[1717718955697,2.1744,170.16,170.12,2.1748]
[1717718955898,8.8544,170.16,170.13,2.1747]
[1717718956199,6.68,170.16,170.14,2.1746]
[1717718956397,8.8544,170.16,170.11,4.35]
[1717718956603,6.68,170.16,170.13,2.1747]
[1717718956794,8.8544,170.16,170.13,2.1747]
[1717718957582,19.5669,170.19,170.13,2.1747]
[1717718957583,2.1743,170.17,170.13,2.1747]
[1717718957784,6.68,170.16,170.13,2.1747]
[1717718958179,2.1743,170.17,170.14,2.1746]
[1717718958402,6.68,170.16,170.14,2.1746]
[1717718958602,6.68,170.16,170.13,2.1747]
[1717718960421,8.8544,170.16,170.13,2.1747]
[1717718960622,6.68,170.15,170.13,2.1747]
[1717718961696,6.68,170.14,170.08,15.2276]
[1717718961889,26.72,170.19,170.06,35.25]
[1717718961890,6.68,170.11,170.1,2.1751]
[1717718962310,2.1752,170.1,170.05,4.3514]
[1717718962609,6.68,170.08,170.07,2.1755]
[1717718963719,6.68,170.08,170.06,2.1756]
[1717718964097,2.1752,170.1,170.07,2.1755]
[1717718964292,6.68,170.08,170.07,2.1755]
[1717718964712,2.1752,170.1,170.07,2.1755]
[1717718964901,6.68,170.08,170.07,2.1755]
[1717718966280,6.68,170.09,170.08,2.1754]
[1717718975214,13.3126,170.09,170.07,2.1755]
[1717718975598,6.68,170.08,170.07,2.1755]
[1717718976198,6.68,170.08,170.06,2.1756]
[1717718976398,6.68,170.07,170.06,2.1756]
[1717718980704,6.68,170.07,170.01,6.529]
[1717718980912,6.68,170.05,170.03,2.176]
[1717718981105,6.68,170.05,170.0,13.198917]
[1717718981318,6.68,170.04,170.02,2.1762]
[1717718981617,6.68,170.05,170.03,2.176]
[1717718985710,6.68,170.04,170.03,2.176]
[1717718987931,6.68,170.04,170.01,4.3526]
[1717718988132,6.68,170.03,170.02,2.1761]
[1717718988641,6.68,170.03,170.01,2.1762]
[1717718988827,6.68,170.02,170.01,2.1762]
[1717718989135,6.68,170.02,170.01,2.1763]
[1717718990231,6.68,170.02,170.0,15.375317]
[1717718992316,2.1759,170.05,170.01,2.1763]
[1717718992716,6.68,170.03,170.01,2.1763]
[1717718993330,6.68,170.04,170.01,2.1763]
[1717718995330,8.8559,170.04,170.01,2.1763]
[1717718996543,6.68,170.04,170.01,2.1763]
[1717718997048,2.1757,170.06,170.0,17.551717]
[1717718997261,8.8557,170.06,170.0,30.761017]
[1717718997437,8.8557,170.06,170.03,2.176]
[1717718997755,8.8557,170.06,170.02,2.1761]
[1717718998056,8.8557,170.06,170.03,2.176]
[1717719000442,2.1756,170.07,170.04,2.1759]
[1717719000838,8.8556,170.07,170.04,2.1759]
[1717719001953,6.68,170.06,170.03,2.176]
[1717719002336,8.8557,170.06,170.03,2.176]
[1717719002853,2.1757,170.06,170.02,2.1761]
[1717719003032,6.68,170.03,170.02,2.1761]
[1717719003351,6.68,170.03,170.01,2.1762]
[1717719003655,6.68,170.03,170.02,2.1762]
[1717719005232,8.4932,170.06,170.03,2.176]
[1717719005434,2.1756,170.07,170.03,2.1759]
[1717719005737,6.68,170.05,170.03,2.1759]
[1717719007241,2.1756,170.07,170.04,2.1759]
[1717719007448,6.68,170.06,170.04,2.1759]
[1717719007746,6.68,170.06,170.03,2.176]
[1717719008152,8.8557,170.06,170.03,2.176]
[1717719008762,6.68,170.05,170.03,2.176]
[1717719009154,6.68,170.04,170.03,2.176]
[1717719012465,2.1756,170.07,170.04,2.1759]
[1717719012647,6.68,170.05,170.04,2.1759]
[1717719013059,6.68,170.05,170.03,2.176]
[1717719013452,6.68,170.05,170.04,2.1759]
[1717719016670,2.1756,170.07,170.04,2.1759]
[1717719016872,6.68,170.05,170.04,2.1759]
[1717719017273,6.68,170.05,170.03,1.8892596]
[1717719017876,6.68,170.06,170.03,1.8892596]
[1717719018168,6.68,170.06,170.02,4.3524]
[1717719018169,6.68,170.06,170.04,2.1759]
[1717719018562,6.68,170.06,170.03,2.176]
[1717719020255,8.8557,170.06,170.03,2.176]
[1717719020455,6.68,170.04,170.03,2.176]
[1717719023356,2.1757,170.06,170.03,2.176]
[1717719023774,6.68,170.04,170.03,2.176]
[1717719026887,2.1756,170.07,170.04,2.1759]
[1717719027182,6.68,170.05,170.04,2.1759]
[1717719030479,6.68,170.05,170.03,2.1759]
[1717719031264,6.68,170.04,170.03,2.1759]
[1717719033563,6.68,170.05,170.03,2.1759]
[1717719033890,6.68,170.05,170.04,2.1759]
[1717719036295,6.68,170.06,170.04,2.1759]
[1717719040569,2.1754,170.08,170.05,2.1758]
[1717719040769,39.5306,170.1,170.05,6.5273]
[1717719040770,6.68,170.1,170.05,6.5273]
[1717719040975,6.68,170.1,170.08,2.1754]
[1717719041180,2.1751,170.11,170.08,2.1754]
[1717719041493,6.68,170.1,170.08,2.1754]
[1717719041884,2.1751,170.11,170.07,2.1754]
[1717719042082,2.1749,170.12,170.09,2.1752]
[1717719042271,2.1748,170.13,170.09,2.1751]
[1717719042466,6.68,170.12,170.09,2.1751]
[1717719042671,6.68,170.12,170.1,2.1751]
[1717719042872,8.2776,170.14,170.1,2.1751]
[1717719043171,6.68,170.13,170.1,2.175]
[1717719043901,6.68,170.13,170.11,2.175]
[1717719044994,6.68,170.13,170.08,12.63728253]
[1717719044995,6.68,170.13,170.1,2.1751]
[1717719046190,2.1746,170.15,170.11,2.1749]
[1717719046392,8.8546,170.15,170.12,2.1748]
[1717719046787,2.1746,170.15,170.11,2.1749]
[1717719047106,8.8546,170.14,170.11,2.1749]
[1717719047290,8.8546,170.15,170.12,2.1749]
[1717719047881,2.1746,170.14,170.11,2.1749]
[1717719048303,8.8546,170.14,170.11,2.1749]
[1717719048781,8.8546,170.14,170.1,2.1751]
[1717719049096,8.8546,170.14,170.11,2.175]
[1717719050603,6.68,170.14,170.11,2.175]
[1717719052285,8.8546,170.14,170.11,2.175]
[1717719053193,4.3486,170.17,170.12,2.1749]
[1717719053385,8.8545,170.15,170.12,2.1749]
[1717719054407,6.68,170.15,170.12,2.1749]
[1717719056211,8.8545,170.15,170.12,2.1749]
[1717719057407,6.68,170.15,170.12,2.1749]
[1717719058205,2.1742,170.18,170.14,2.1746]
[1717719058407,6.68,170.17,170.14,2.1746]
[1717719058910,2.1743,170.17,170.14,2.1746]
[1717719059113,2.1741,170.18,170.14,2.1746]
[1717719059401,8.8541,170.18,170.14,2.1746]
[1717719060387,8.8541,170.18,170.15,2.1745]
[1717719060585,2.1741,170.19,170.16,2.1743]
[1717719060806,6.68,170.19,170.16,2.1743]
[1717719061508,8.8541,170.19,170.15,2.1744]
[1717719061905,6.68,170.18,170.15,2.1744]
[1717719062395,2.1739,170.2,170.16,2.1743]
[1717719062996,6.68,170.18,170.16,2.1743]
[1717719064317,6.68,170.2,170.16,4.3488]
[1717719064904,2.1737,170.22,170.18,2.174]
[1717719065107,2.1737,170.22,170.16,4.3488]
[1717719065108,6.68,170.2,170.19,2.174]
[1717719065498,6.68,170.2,170.18,2.174]
[1717719065707,6.68,170.21,170.18,2.174]
[1717719066719,2.1737,170.22,170.19,2.174]
[1717719066926,6.68,170.22,170.19,2.174]
[1717719067321,2.1735,170.23,170.19,2.174]
[1717719067525,6.68,170.22,170.19,2.174]
[1717719067707,2.1735,170.23,170.2,2.1738]
[1717719067911,6.68,170.22,170.19,2.1739]
[1717719068712,6.68,170.22,170.2,2.1738]
[1717719069030,2.1735,170.23,170.2,2.1738]
[1717719069206,6.68,170.22,170.2,2.1738]
[1717719072647,6.68,170.21,170.19,2.1739]
[1717719073725,6.68,170.21,170.17,8.6971]
[1717719073726,6.68,170.21,170.2,2.1739]
[1717719075529,2.1734,170.24,170.2,2.1739]
[1717719075749,6.68,170.21,170.2,2.1739]
[1717719075938,6.68,170.22,170.2,2.1739]
[1717719078242,4.3466,170.25,170.2,2.1739]
[1717719078452,6.68,170.23,170.21,2.1737]
[1717719080930,6.68,170.22,170.2,2.1738]
[1717719081653,6.68,170.23,170.21,2.1737]
[1717719082235,2.1734,170.24,170.21,2.1737]
[1717719082547,6.68,170.23,170.2,2.1738]
[1717719083537,8.8535,170.23,170.2,2.1738]
[1717719083931,6.68,170.21,170.16,10.8718]
[1717719084133,6.2811,170.23,170.16,10.8718]
[1717719084134,6.68,170.2,170.16,10.8718]
[1717719084438,6.68,170.2,170.18,2.1741]
[1717719085146,2.1737,170.22,170.19,2.174]
[1717719085445,6.68,170.2,170.19,2.174]
[1717719086253,6.68,170.21,170.2,2.1739]
[1717719086746,6.68,170.22,170.2,2.1739]
[1717719088428,2.1735,170.23,170.2,2.1739]
[1717719088634,6.68,170.22,170.2,2.1739]
[1717719089130,2.1735,170.23,170.2,2.1739]
[1717719089336,6.68,170.22,170.2,2.1739]
[1717719091463,2.1737,170.22,170.19,2.1739]
[1717719091966,6.68,170.22,170.19,2.1739]
[1717719092253,8.8536,170.22,170.19,2.1739]
[1717719092431,6.68,170.21,170.19,2.1739]
[1717719094843,6.68,170.2,170.19,2.1739]
[1717719096856,8.8539,170.2,170.17,2.1741]
[1717719097159,6.68,170.18,170.17,2.1741]
[1717719097768,6.68,170.18,170.16,2.1744]
[1717719098563,6.68,170.17,170.16,2.1744]
[1717719099050,6.68,170.17,170.15,2.1745]
[1717719099363,6.68,170.16,170.15,2.1745]
[1717719102062,8.4808,170.2,170.16,2.1743]
[1717719102252,6.68,170.18,170.16,2.1743]
[1717719103045,6.68,170.18,170.17,2.1742]
[1717719103449,6.68,170.18,170.16,2.1743]
[1717719107767,2.174,170.19,170.16,2.1743]
[1717719107965,6.68,170.18,170.16,2.1743]
[1717719115001,2.174,170.19,170.16,2.1743]
[1717719115303,6.68,170.19,170.16,2.1743]
[1717719115598,2.1739,170.2,170.16,2.1743]
[1717719115779,8.8539,170.2,170.16,2.1743]
[1717719116110,2.174,170.19,170.16,2.1743]
[1717719117306,2.1735,170.23,170.19,2.1739]
[1717719117492,8.8536,170.22,170.19,2.1739]
[1717719117691,2.1736,170.23,170.2,2.1739]
[1717719117894,6.68,170.22,170.19,2.1739]
[1717719119610,6.68,170.22,170.2,2.1738]
[1717719120290,2.1736,170.23,170.2,2.1738]
[1717719120490,8.8536,170.22,170.19,2.1739]
[1717719121609,6.68,170.21,170.18,2.174]
[1717719122692,6.68,170.21,170.19,2.1739]
[1717719124315,2.1736,170.22,170.19,2.1739]
[1717719124316,6.68,170.2,170.19,2.1739]
[1717719124816,6.68,170.2,170.18,2.174]
[1717719125011,6.68,170.19,170.17,2.1742]
[1717719125403,6.68,170.19,170.18,2.1741]
[1717719125912,6.68,170.2,170.19,2.1739]
[1717719126087,2.1737,170.22,170.19,2.1739]
[1717719126288,6.68,170.21,170.19,2.1739]
[1717719126709,8.8537,170.22,170.19,2.1739]
[1717719127099,6.68,170.21,170.19,2.1739]
[1717719128198,6.68,170.21,170.18,2.174]
[1717719129322,2.1737,170.22,170.19,2.174]
[1717719129495,6.68,170.21,170.19,2.174]
[1717719130506,2.1737,170.22,170.19,2.174]
[1717719130712,6.68,170.23,170.19,4.348]
[1717719131011,6.68,170.23,170.2,2.1738]
[1717719131012,6.68,170.22,170.2,2.1738]
[1717719131730,8.8536,170.22,170.19,2.1739]
[1717719132034,6.68,170.2,170.18,2.1741]
[1717719132218,2.1737,170.22,170.16,10.8718]
[1717719132422,6.68,170.2,170.16,10.8718]
[1717719132610,2.1737,170.22,170.19,2.174]
[1717719132822,6.68,170.2,170.19,2.174]
[1717719133030,6.68,170.21,170.19,2.174]
[1717719134107,2.1737,170.22,170.19,2.174]
[1717719134312,6.68,170.22,170.19,2.174]
[1717719134526,8.8536,170.22,170.19,2.174]
[1717719136415,8.8536,170.22,170.18,2.174]
[1717719136416,2.1738,170.21,170.18,2.174]
[1717719136615,8.8538,170.21,170.18,2.174]
[1717719137221,8.8539,170.2,170.17,2.1742]
[1717719137430,6.68,170.19,170.17,2.1742]
[1717719139334,6.68,170.19,170.18,2.1741]
[1717719140213,6.68,170.19,170.16,4.3488]